bitfinex/quotes_SOLUSD_20250228
["timestamp","ask_amount","ask_price","bid_price","bid_amount"]
[1740722060325,25.04461043,127.14,126.99,7.8746]
[1740722060520,55.39171937,127.13,126.99,225.9746]
[1740722060720,10.44,127.12,127.0,18.79181043]
[1740722060938,6.2528,127.14,127.07,20.0]
[1740722061139,6.2528,127.14,127.07,101.6]
[1740722061729,6.2528,127.14,127.11,20.0]
[1740722062147,6.2528,127.14,127.08,7.869]
[1740722062349,0.14216157,127.13,127.07,89.4696]
[1740722062531,0.14216157,127.11,127.0,7.874]
[1740722062736,55.39171937,127.1,127.0,225.974]
[1740722062949,65.77171937,127.1,127.03,20.0]
[1740722063136,65.77171937,127.1,127.03,101.6]
[1740722063749,65.77171937,127.1,127.07,20.0]
[1740722063961,10.38,127.1,127.07,20.0]
[1740722064643,10.38,127.1,127.04,7.8715]
[1740722065041,74.1835298,127.09,127.0,7.874]
[1740722065248,55.39171937,127.08,127.0,89.474]
[1740722065452,74.1835298,127.07,127.0,7.874]
[1740722065761,74.1835298,127.07,126.99,0.03]
[1740722065941,82.0534298,127.07,126.99,7.9046]
[1740722066137,55.39171937,127.06,126.99,7.9046]
[1740722066456,55.39171937,127.05,126.99,7.9046]
[1740722066637,10.34,127.04,126.99,7.9046]
[1740722066833,10.34,127.04,127.02,20.0]
[1740722067258,61.96681937,127.03,126.99,0.03]
[1740722068464,10.34,127.04,126.99,0.03]
[1740722068870,10.32,127.08,126.99,0.03]
[1740722069049,10.32,127.08,126.99,218.13]
[1740722069555,55.39171937,127.07,127.02,20.0]
[1740722069870,10.32,127.08,126.99,0.03]
[1740722069871,74.1835298,127.06,126.99,0.03]
[1740722070058,18.79181043,127.04,126.99,0.03]
[1740722070262,55.39171937,127.05,126.99,0.03]
[1740722070574,0.14216157,127.04,126.99,0.03]
[1740722071068,55.39171937,127.05,126.99,0.03]
[1740722071272,55.53388094,127.04,126.99,20.03]
[1740722071747,74.04136823,127.03,126.99,20.03]
[1740722071957,65.77171937,127.02,126.99,20.03]
[1740722072146,65.77171937,127.02,126.99,0.03]
[1740722073140,73.64461937,127.02,126.99,0.03]
[1740722073547,65.77171937,127.02,126.99,0.03]
[1740722074146,74.1835298,127.01,126.99,0.03]
[1740722074343,55.39171937,127.0,126.95,0.03]
[1740722074567,55.39171937,126.99,126.95,0.03]
[1740722075060,33.07051043,126.98,126.95,0.03]
[1740722075265,33.07051043,126.98,126.91,0.03]
[1740722075461,88.4622298,126.98,126.91,0.03]
[1740722075769,108.1503298,126.98,126.91,0.03]
[1740722076476,0.14216157,126.96,126.91,0.03]
[1740722076673,0.14216157,126.94,126.84,7.8838]
[1740722076984,18.79181043,126.92,126.82,7.8851]
[1740722077279,18.79181043,126.92,126.79,7.887]
[1740722077280,1.71956157,126.9,126.79,7.887]
[1740722077446,18.79181043,126.88,126.79,7.887]
[1740722077650,0.14216157,126.88,126.79,7.887]
[1740722077859,10.34,126.94,126.79,225.987]
[1740722078184,10.34,126.94,126.87,20.0]
[1740722078692,10.42,126.96,126.87,20.0]
[1740722078865,6.403,126.98,126.91,20.0]
[1740722079060,10.46,126.99,126.92,7.8789]
[1740722079377,10.46,126.99,126.95,20.0]
[1740722079578,10.48,127.03,126.95,20.0]
[1740722079770,10.48,127.03,126.95,238.1]
[1740722080156,1.6055,127.07,126.95,101.6]
[1740722080373,1.6055,127.07,126.99,20.0]
[1740722080651,149.6797,127.08,126.99,20.0]
[1740722081169,149.6797,127.08,127.0,7.874]
[1740722082271,149.6797,127.08,126.99,27.8745]
[1740722082471,132.82,127.08,127.03,20.0]
[1740722082859,140.6892,127.08,126.99,7.8745]
[1740722083055,74.1835298,127.07,126.92,10.62]
[1740722083255,55.53388094,127.07,126.95,7.8771]
[1740722083455,10.62,127.06,126.99,20.0]
[1740722083762,10.62,127.06,126.99,156.5]
[1740722084475,0.14216157,127.07,126.99,0.03]
[1740722085161,7.8715,127.04,126.99,0.03]
[1740722085361,29.43181043,127.03,126.99,0.03]
[1740722085682,55.39171937,127.02,126.99,0.03]
[1740722085863,0.14216157,127.01,126.99,0.03]
[1740722086061,55.39171937,127.0,126.99,0.03]
[1740722086788,10.64,127.03,126.99,0.03]
[1740722087083,55.39171937,127.06,126.99,0.03]
[1740722087275,10.66,127.05,127.02,20.0]
[1740722088389,8.0623,127.03,126.71,24.8509417]
[1740722088685,69.32737464,127.02,126.71,219.75619249]
[1740722088867,1.43355527,127.01,126.71,81.6]
[1740722089068,20.0,126.97,126.71,219.75607012]
[1740722089383,7.8789,126.92,126.71,218.1]
[1740722089563,66.33171937,126.91,126.71,218.1]
[1740722089765,66.33171937,126.91,126.72,7.8914]
[1740722089984,7.8771,126.95,126.74,6.0269]
[1740722090180,132.86,126.91,126.75,1.6553351]
[1740722090386,132.86,126.91,126.78,20.0]
[1740722090583,132.86,126.91,126.78,219.7553093]
[1740722090780,132.86,126.91,126.78,218.1]
[1740722090968,10.96,126.96,126.81,21.5168]
[1740722091167,10.96,126.96,126.85,20.0]
[1740722091382,10.96,126.96,126.89,20.0]
[1740722091765,66.33171937,127.01,126.89,156.5]
[1740722091965,10.94,127.01,126.89,156.5]
[1740722092269,132.86,127.04,126.9,1.65407844]
[1740722092464,132.86,127.04,126.93,20.0]
[1740722092672,132.86,127.04,126.93,239.75349493]
[1740722092868,10.94,127.06,126.97,20.0]
[1740722093197,9.94,127.06,126.97,156.5]
[1740722093407,0.063,127.08,126.97,156.5]
[1740722093697,0.063,127.08,126.98,1.6531308]
[1740722094463,0.063,127.08,126.97,20.0]
[1740722094686,0.063,127.08,126.97,21.65307966]
[1740722094885,0.063,127.08,126.97,239.75307966]
[1740722095091,0.063,127.08,126.97,238.1]
[1740722095390,0.063,127.08,126.97,20.0]
[1740722095979,0.063,127.08,126.98,0.03]
[1740722096287,10.92,127.07,126.98,20.03]
[1740722097281,0.063,127.08,126.99,1.65295663]
[1740722097478,0.063,127.08,127.02,20.0]
[1740722097772,0.063,127.08,127.02,156.5]
[1740722098790,0.063,127.08,127.02,20.0]
[1740722100590,0.063,127.08,127.03,20.0]
[1740722100788,0.063,127.08,127.04,38.79181043]
[1740722100789,0.0001,127.08,127.04,38.79181043]
[1740722100994,0.0001,127.08,127.04,256.89181043]
[1740722101179,10.84,127.18,127.09,20.0]
[1740722101369,55.39171937,127.19,127.1,0.14216157]
[1740722101573,55.39171937,127.19,127.12,20.0]
[1740722101794,0.063,127.21,127.13,0.14216157]
[1740722102090,12.04477102,127.31,127.17,0.14216157]
[1740722102296,12.04477102,127.31,127.2,20.0]
[1740722102480,55.39171937,127.3,127.22,20.0]
[1740722102996,66.33171937,127.34,127.22,136.5]
[1740722103182,55.39171937,127.33,127.19,10.94]
[1740722103385,55.39171937,127.32,127.22,20.0]
[1740722103688,55.39171937,127.35,127.23,0.14216157]
[1740722103880,10.96,127.34,127.26,20.0]
[1740722104272,10.96,127.34,127.19,10.94]
[1740722104489,55.39171937,127.33,127.16,0.14216157]
[1740722104689,0.14216157,127.31,127.16,136.5]
[1740722104885,18.79181043,127.31,127.16,136.5]
[1740722105182,0.14216157,127.29,127.12,10.96]
[1740722105382,18.79181043,127.27,127.1,142.759]
[1740722105680,55.39171937,127.26,127.14,20.0]
[1740722105882,55.39171937,127.26,127.15,0.14216157]
[1740722106097,55.39171937,127.26,127.18,20.0]
[1740722106297,0.14216157,127.24,127.1,235.319]
[1740722106499,74.04136823,127.25,127.11,1.65129701]
[1740722106803,74.04136823,127.25,127.1,235.319]
[1740722107002,10.94,127.28,127.15,20.0]
[1740722107202,18.64964886,127.27,127.15,136.5]
[1740722107494,0.14216157,127.26,127.1,17.219]
[1740722107699,0.14216157,127.24,127.1,153.719]
[1740722107881,0.14216157,127.22,127.1,17.219]
[1740722108082,55.39171937,127.21,127.1,98.819]
[1740722108277,132.64,127.26,127.15,0.14216157]
[1740722108278,55.39171937,127.25,127.15,0.14216157]
[1740722108510,55.39171937,127.25,127.18,20.0]
[1740722108686,132.64,127.26,127.18,101.6]
[1740722109029,18.64964886,127.25,127.18,101.6]
[1740722109308,18.64964886,127.25,127.11,81.6]
[1740722109486,132.64,127.26,127.16,20.0]
[1740722109678,132.64,127.26,127.17,0.14216157]
[1740722109892,55.45471937,127.27,127.2,20.0]
[1740722110209,0.063,127.27,127.2,101.6]
[1740722110576,0.063,127.27,127.15,0.14216157]
[1740722110784,55.39171937,127.26,127.15,218.24216157]
[1740722111082,55.39171937,127.26,127.18,20.0]
[1740722111279,0.063,127.27,127.18,238.1]
[1740722111506,0.063,127.27,127.19,0.14216157]
[1740722111802,0.063,127.27,127.22,20.0]
[1740722112001,0.063,127.27,127.23,0.14216157]
[1740722112191,0.063,127.27,127.22,20.0]
[1740722112499,0.063,127.27,127.23,0.14216157]
[1740722112676,0.063,127.27,127.26,20.14216157]
[1740722112887,0.063,127.27,127.26,256.89181043]
[1740722113087,0.063,127.27,127.26,238.1]
[1740722113299,0.063,127.27,127.26,101.74216157]
[1740722113712,0.063,127.36,127.3,20.0]
[1740722113895,0.063,127.36,127.3,101.6]
[1740722114408,0.063,127.36,127.3,238.1]
[1740722114712,0.063,127.36,127.31,0.14216157]
[1740722114909,0.063,127.36,127.31,218.1]
[1740722115417,0.063,127.36,127.35,20.0]
[1740722115594,0.063,127.36,127.35,101.6]
[1740722115988,0.063,127.36,127.35,256.89181043]
[1740722116810,0.063,127.36,127.35,238.1]
[1740722117004,0.063,127.36,127.31,81.6]
[1740722117418,0.063,127.36,127.25,10.96]
[1740722117713,0.063,127.36,127.32,20.0]
[1740722118402,0.063,127.36,127.29,218.1]
[1740722118607,0.063,127.36,127.3,1.64869381]
[1740722118812,0.063,127.36,127.35,0.14216157]
[1740722119113,0.063,127.36,127.32,218.1]
[1740722119498,0.063,127.36,127.35,20.0]
[1740722120101,0.063,127.36,127.27,10.98]
[1740722120310,55.39171937,127.35,127.23,224.705]
[1740722120695,55.39171937,127.35,127.27,20.0]
[1740722120899,0.063,127.36,127.27,238.1]
[1740722121110,0.063,127.36,127.27,218.1]
[1740722121311,0.063,127.36,127.27,218.13]
[1740722121617,0.063,127.36,127.3,20.0]
[1740722122231,0.063,127.36,127.3,238.1]
[1740722122597,0.063,127.36,127.31,0.14216157]
[1740722122801,0.063,127.36,127.34,20.0]
[1740722123621,0.063,127.36,127.27,10.99]
[1740722123824,0.063,127.36,127.31,20.0]
[1740722124007,0.063,127.36,127.31,101.6]
[1740722124315,0.063,127.36,127.31,20.0]
[1740722124529,0.063,127.36,127.27,10.99]
[1740722124530,0.14216157,127.33,127.27,0.03]
[1740722124818,0.14216157,127.3,127.27,0.03]
[1740722125002,18.79181043,127.28,127.27,0.03]
[1740722125398,10.98,127.34,127.27,0.03]
[1740722125598,52.39171937,127.35,127.27,0.03]
[1740722125811,52.39171937,127.35,127.29,20.0]
[1740722126022,0.063,127.37,127.3,20.0]
[1740722126235,0.063,127.37,127.33,20.0]
[1740722126600,0.063,127.37,127.35,20.0]
[1740722126814,0.063,127.37,127.32,81.6]
[1740722127099,52.39171937,127.35,127.31,20.0]
[1740722127319,0.14216157,127.33,127.24,81.6]
[1740722127519,18.64964886,127.31,127.23,10.98]
[1740722127725,71.04136823,127.31,127.18,1.65007745]
[1740722127929,71.04136823,127.31,127.18,10.98]
[1740722128108,18.64964886,127.29,127.18,229.08]
[1740722128307,10.98,127.32,127.19,18.79181043]
[1740722128528,10.98,127.32,127.26,20.0]
[1740722128726,52.39171937,127.33,127.26,20.0]
[1740722128929,0.14216157,127.32,127.26,20.0]
[1740722129107,52.39171937,127.33,127.1,0.03]
[1740722129108,0.14216157,127.29,127.16,81.6]
[1740722129314,52.53388094,127.28,127.18,0.14216157]
[1740722129631,71.1835298,127.28,127.2,20.0]
[1740722130024,52.39171937,127.28,127.2,20.0]
[1740722130338,18.79181043,127.28,127.17,81.6]
[1740722130514,18.79181043,127.26,127.17,81.6]
[1740722130906,18.79181043,127.26,127.11,11.0]
[1740722130907,18.79181043,127.24,127.11,11.0]
[1740722131143,0.14216157,127.22,127.14,20.0]
[1740722131429,82.8,127.21,127.12,0.14216157]
[1740722131626,82.8,127.21,127.12,18.64964886]
[1740722131834,82.8,127.21,127.15,20.0]
[1740722132206,10.98,127.23,127.15,238.1]
[1740722132411,101.44964886,127.22,127.15,20.0]
[1740722132615,82.8,127.22,127.12,236.77964886]
[1740722132814,82.8,127.26,127.16,0.14216157]
[1740722133026,93.76,127.29,127.2,0.14216157]
[1740722133228,93.76,127.29,127.23,20.0]
[1740722133431,82.8,127.29,127.23,20.0]
[1740722133610,10.98,127.33,127.24,0.14216157]
[1740722133928,10.98,127.33,127.28,20.0]
[1740722134117,90.6523,127.35,127.29,20.0]
[1740722134511,90.6523,127.35,127.26,20.0]
[1740722134917,82.8,127.35,127.27,20.0]
[1740722135112,82.8,127.34,127.27,101.6]
[1740722135315,0.063,127.36,127.3,20.0]
[1740722136036,26.56454886,127.36,127.3,20.0]
[1740722136236,0.14216157,127.35,127.3,20.0]
[1740722136531,0.14216157,127.33,127.21,229.08]
[1740722136739,18.64964886,127.31,127.21,229.08]
[1740722136919,82.94216157,127.3,127.21,81.6]
[1740722137235,0.14216157,127.27,127.19,81.6]
[1740722137419,11.0,127.33,127.17,147.52]
[1740722137420,82.8,127.26,127.17,229.12]
[1740722137731,0.14216157,127.31,127.22,20.0]
[1740722137935,10.98,127.33,127.26,20.0]
[1740722138136,93.78,127.33,127.26,20.0]
[1740722138530,18.64964886,127.32,127.26,20.0]
[1740722138731,0.14216157,127.31,127.26,20.0]
[1740722139616,82.8,127.3,127.18,18.64964886]
[1740722139821,82.8,127.3,127.19,1.79221488]
[1740722140030,82.8,127.3,127.25,20.0]
[1740722141327,82.8,127.32,127.25,81.6]
[1740722141631,82.863,127.36,127.29,20.0]
[1740722141825,82.863,127.36,127.31,20.0]
[1740722142023,18.64964886,127.35,127.31,20.0]
[1740722142428,18.64964886,127.33,127.23,229.08]
[1740722142628,82.8,127.32,127.23,92.58]
[1740722142927,18.64964886,127.31,127.2,1.64999361]
[1740722143132,18.64964886,127.29,127.2,218.1]
[1740722143328,93.78,127.3,127.21,18.64964886]
[1740722143639,93.78,127.3,127.24,20.0]
[1740722144529,0.14216157,127.28,127.19,92.6]
[1740722144715,0.14216157,127.28,127.14,1.6505174]
[1740722144920,18.79181043,127.26,127.14,218.1]
[1740722145127,82.8,127.27,127.18,20.14216157]
[1740722145446,82.8,127.27,127.18,81.74216157]
[1740722145627,18.64964886,127.26,127.21,20.0]
[1740722145824,0.14216157,127.25,127.15,218.1]
[1740722146029,18.64964886,127.23,127.15,81.6]
[1740722146337,0.14216157,127.22,127.12,81.63]
[1740722146553,0.14216157,127.19,127.12,0.03]
[1740722146740,18.64964886,127.17,127.12,0.03]
[1740722146938,0.14216157,127.16,127.12,0.03]
[1740722147248,0.14216157,127.13,127.12,0.03]
[1740722147545,0.14216157,127.14,127.12,0.03]
[1740722147926,18.64964886,127.15,127.12,0.03]
[1740722148342,0.14216157,127.15,127.12,0.03]
[1740722148545,8.00706157,127.15,127.12,0.03]
[1740722149126,18.64964886,127.16,127.06,19.56]
[1740722149328,82.8,127.15,127.06,101.16]
[1740722149534,18.64964886,127.14,127.06,101.16]
[1740722149943,82.94216157,127.13,127.03,81.6]
[1740722150244,0.14216157,127.1,126.97,88.1559]
[1740722150429,18.64964886,127.08,126.99,218.13]
[1740722150629,82.8,127.09,126.99,218.13]
[1740722150838,82.8,127.09,127.0,0.14216157]
[1740722151037,101.59181043,127.08,126.99,0.03]
[1740722151347,18.79181043,127.06,126.99,0.03]
[1740722151552,0.14216157,127.03,126.99,0.03]
[1740722151764,18.79181043,127.01,126.99,0.03]
[1740722152134,101.59181043,127.0,126.99,0.03]
[1740722152335,101.59181043,127.0,126.97,0.03]
[1740722152336,18.79181043,126.99,126.97,0.03]
[1740722152540,0.14216157,126.96,126.84,218.1]
[1740722152740,0.14216157,126.96,126.87,20.0]
[1740722152941,0.14216157,126.96,126.84,81.6]
[1740722153144,0.14216157,126.97,126.84,218.1]
[1740722153463,0.14216157,126.97,126.88,20.0]
[1740722153633,0.14216157,126.97,126.9,20.0]
[1740722154150,18.79181043,126.97,126.9,20.0]
[1740722154745,18.64964886,126.97,126.94,20.0]
[1740722155045,0.14216157,126.96,126.88,20.0]
[1740722155528,18.64964886,126.97,126.88,20.0]
[1740722155727,18.64964886,126.97,126.88,238.1]
[1740722155949,10.88,126.98,126.89,0.14216157]
[1740722156135,10.84,127.01,126.92,20.0]
[1740722156335,82.8,127.0,126.92,20.0]
[1740722156532,18.79181043,126.99,126.92,20.0]
[1740722156838,82.8,126.98,126.92,20.0]
[1740722157138,82.8,126.97,126.92,20.0]
[1740722157864,82.8,126.97,126.9,0.03]
[1740722158036,82.8,126.97,126.9,0.17216157]
[1740722158237,82.8,127.0,126.93,20.0]
[1740722159254,10.82,127.05,126.94,0.14216157]
[1740722159559,82.8,127.04,126.97,20.0]
[1740722160350,101.44964886,127.03,126.97,20.0]
[1740722160549,82.8,127.03,126.93,0.14216157]
[1740722160749,82.8,127.03,126.93,218.24216157]
[1740722160944,18.64964886,127.02,126.9,0.03]
[1740722161149,18.64964886,127.0,126.9,218.13]
[1740722161347,18.64964886,127.0,126.93,20.0]
[1740722161567,82.8,126.99,126.93,20.0]
[1740722162162,10.82,127.02,126.94,0.14216157]
[1740722162358,88.5331,127.06,126.97,20.0]
[1740722162661,77.7531,127.05,126.97,101.6]
[1740722162961,0.14216157,127.03,126.9,0.03]
[1740722163158,77.7531,127.02,126.93,20.0]
[1740722163363,88.5331,127.06,126.94,0.14216157]
[1740722163655,77.7531,127.05,126.97,20.0]
[1740722163863,18.79181043,127.03,126.97,20.0]
[1740722164244,18.79181043,127.01,126.93,20.0]
[1740722164443,88.5531,127.0,126.93,20.0]
[1740722164652,10.78,127.01,126.93,238.1]
[1740722165161,18.64964886,126.99,126.93,20.0]
[1740722165466,18.64964886,126.97,126.9,0.03]
[1740722165641,77.7531,126.98,126.9,0.03]
[1740722165642,18.64964886,126.95,126.9,0.03]
[1740722165838,77.7531,126.94,126.9,0.03]
[1740722166150,18.64964886,126.92,126.9,0.03]
[1740722166352,96.54491043,126.91,126.9,0.03]
[1740722166546,18.79181043,126.91,126.9,0.03]
[1740722166760,10.78,126.95,126.9,0.03]
[1740722166951,0.14216157,126.93,126.9,0.03]
[1740722167153,8.02066157,126.93,126.9,0.03]
[1740722167349,18.64964886,126.92,126.9,0.03]
[1740722167546,101.44964886,126.91,126.9,0.03]
[1740722167949,6.648,126.96,126.9,0.03]
[1740722167950,82.8,126.94,126.9,0.03]
[1740722168137,7.8741,127.0,126.9,0.03]
[1740722168138,93.6,126.98,126.9,0.03]
[1740722168341,82.8,126.97,126.9,0.03]
[1740722168550,10.8,126.98,126.9,0.03]
[1740722168551,82.8,126.96,126.9,0.03]
[1740722169163,82.8,126.95,126.9,0.03]
[1740722169360,93.6,126.98,126.9,0.03]
[1740722169551,101.44964886,126.97,126.91,20.0]
[1740722169862,0.14216157,126.94,126.9,0.03]
[1740722170065,0.14216157,126.92,126.9,0.03]
[1740722170269,101.44964886,126.91,126.9,0.03]
[1740722170563,10.86,126.92,126.9,0.03]
[1740722171265,10.86,126.96,126.9,0.03]
[1740722172160,132.76,126.99,126.93,20.0]
[1740722172465,132.76,126.99,126.94,20.0]
[1740722172849,18.64964886,126.98,126.9,0.03]
[1740722173048,0.14216157,126.97,126.9,0.03]
[1740722173748,132.76,126.99,126.93,20.0]
[1740722174359,10.84,127.0,126.93,20.0]
[1740722175358,101.44964886,126.99,126.93,20.0]
[1740722175561,18.64964886,126.97,126.9,0.03]
[1740722175868,82.8,126.96,126.9,0.03]
[1740722176068,101.44964886,126.95,126.9,0.03]
[1740722176371,82.8,126.95,126.9,0.03]
[1740722176595,82.8,126.94,126.9,0.03]
[1740722177166,82.8,126.96,126.91,20.0]
[1740722177471,82.8,127.01,126.94,20.0]
[1740722177653,82.8,127.01,126.96,20.0]
[1740722178043,132.84,127.06,126.96,20.0]
[1740722178264,82.8,127.05,126.96,238.1]
[1740722178456,82.8,127.1,127.0,20.0]
[1740722178670,82.8,127.1,127.01,0.14216157]
[1740722178865,82.863,127.12,127.01,265.07551075]
[1740722179042,82.863,127.12,127.06,20.0]
[1740722179043,0.063,127.12,127.06,20.0]
[1740722179250,0.063,127.12,127.09,20.0]
[1740722179654,0.063,127.12,127.04,20.0]
[1740722179856,0.063,127.12,127.08,20.0]
[1740722180170,0.063,127.12,127.09,20.0]
[1740722181066,0.063,127.12,127.1,0.14216157]
[1740722181265,0.063,127.12,127.1,18.79181043]
[1740722181573,0.063,127.12,127.09,218.1]
[1740722181775,0.063,127.12,127.1,0.14216157]
[1740722181954,0.063,127.12,127.11,20.0]
[1740722182153,0.063,127.12,127.11,175.29181043]
[1740722182355,82.8,127.26,127.12,0.14216157]
[1740722182556,82.863,127.25,127.16,20.0]
[1740722182757,0.063,127.25,127.17,18.79181043]
[1740722182952,0.063,127.25,127.22,20.0]
[1740722183663,0.063,127.25,127.23,0.14216157]
[1740722184174,0.063,127.25,127.22,238.1]
[1740722184665,0.063,127.25,127.19,81.6]
[1740722184869,0.063,127.25,127.17,147.24]
[1740722184870,0.063,127.25,127.18,0.14216157]
[1740722185071,0.063,127.25,127.21,20.0]
[1740722185263,0.063,127.25,127.17,218.1]
[1740722185664,0.063,127.25,127.16,10.72]
[1740722185862,82.863,127.25,127.16,10.72]
[1740722186160,82.863,127.25,127.19,20.0]
[1740722186371,0.063,127.25,127.17,218.1]
[1740722186682,82.94216157,127.24,127.12,228.84]
[1740722186976,0.14216157,127.22,127.09,218.1]
[1740722187176,18.64964886,127.2,127.09,218.1]
[1740722187373,82.8,127.21,127.09,218.1]
[1740722187573,0.14216157,127.2,127.12,20.0]
[1740722187876,82.8,127.19,127.12,20.0]
[1740722188591,82.8,127.19,127.09,81.6]
[1740722188882,82.8,127.18,127.09,218.1]
[1740722189178,82.8,127.18,127.12,20.0]
[1740722189564,82.8,127.2,127.12,101.6]
[1740722189765,0.063,127.25,127.13,1.79337251]
[1740722190076,0.063,127.25,127.17,20.0]
[1740722190077,82.8,127.24,127.17,20.0]
[1740722190279,82.8,127.24,127.19,20.0]
[1740722191980,82.8,127.24,127.16,81.6]
[1740722192198,18.64964886,127.23,127.1,228.76]
[1740722192387,82.8,127.22,127.13,20.0]
[1740722192583,82.8,127.21,127.13,81.6]
[1740722192899,82.28,127.21,127.16,20.0]
[1740722194199,82.28,127.2,127.13,81.6]
[1740722194492,82.28,127.19,127.11,218.1]
[1740722194696,82.28,127.18,127.11,81.6]
[1740722194890,82.28,127.17,127.09,81.6]
[1740722195081,82.28,127.17,127.12,20.0]
[1740722195279,82.28,127.2,127.12,101.6]
[1740722195484,0.14216157,127.18,127.08,81.6]
[1740722195689,18.64964886,127.16,127.07,81.6]
[1740722196197,82.28,127.17,127.1,20.0]
[1740722196373,18.64964886,127.16,127.1,20.0]
[1740722196895,18.64964886,127.14,127.04,92.26]
[1740722197095,82.28,127.13,127.04,228.76]
[1740722197592,82.28,127.13,127.07,20.0]
[1740722197794,82.28,127.12,127.03,81.6]
[1740722198006,82.28,127.11,127.01,142.7799]
[1740722198199,82.28,127.11,127.04,20.0]
[1740722198806,82.28,127.1,127.01,81.6]
[1740722198994,90.1449,127.15,127.01,83.25269162]
[1740722199286,0.14216157,127.13,127.04,20.0]
[1740722199476,82.28,127.12,127.04,20.0]
[1740722200281,82.28,127.12,127.02,0.14216157]
[1740722200484,82.28,127.12,127.05,20.0]
[1740722200783,82.28,127.11,127.05,20.0]
[1740722201188,82.28,127.1,126.99,218.1]
[1740722201395,100.92964886,127.09,126.99,218.1]
[1740722201610,7.8696,127.07,126.99,218.1]
[1740722201894,82.28,127.06,126.96,228.72]
[1740722202071,82.28,127.05,126.96,81.6]
[1740722202271,82.28,127.04,126.96,81.6]
[1740722202701,18.64964886,127.03,126.91,98.7703]
[1740722202902,82.28,127.02,126.91,235.2703]
[1740722203100,82.28,127.02,126.94,20.0]
[1740722203308,82.28,127.01,126.94,81.6]
[1740722203905,82.28,127.0,126.91,228.7]
[1740722204092,82.28,126.99,126.91,228.7]
[1740722204294,82.28,126.99,126.91,218.1]
[1740722204500,82.28,126.98,126.91,81.6]
[1740722204882,82.28,126.97,126.9,0.03]
[1740722205100,92.84,126.97,126.9,0.03]
[1740722205401,92.84,126.97,126.92,20.0]
[1740722205402,82.28,126.96,126.92,20.0]
[1740722205709,82.28,126.96,126.9,20.03]
[1740722206491,0.14216157,126.94,126.9,0.03]
[1740722206693,82.28,126.93,126.9,0.03]
[1740722206886,101.07181043,126.92,126.91,0.03]
[1740722207604,18.79181043,126.94,126.91,0.03]
[1740722207993,6.0031,126.95,126.91,0.03]
[1740722208510,93.36,126.97,126.91,0.03]
[1740722208699,82.8,126.96,126.91,0.03]
[1740722209099,10.56,126.97,126.94,20.0]
[1740722209411,82.8,127.0,126.94,20.0]
[1740722209703,16.7806,127.01,126.94,20.0]
[1740722209704,82.8,126.99,126.94,20.0]
[1740722210182,82.8,126.99,126.91,81.63]